fUSD/lending_fUSD_20240409
["ID","MTS","AMOUNT","RATE_DAILY","PERIOD"]
[322010945,1712685069729,-243.54251069,0.00020821,2]
[322010946,1712685069740,-500.0,0.00020821,2]
[322010947,1712685069752,-500.0,0.00020821,2]
[322010948,1712685069762,-500.0,0.00020821,2]
[322010949,1712685069772,-500.0,0.00020821,2]
[322010950,1712685069781,-660.26,0.00020821,2]
[322010951,1712685069791,-500.0,0.00020821,2]
[322010952,1712685069800,-500.0,0.00020821,2]
[322010953,1712685069810,-500.0,0.00020821,2]
[322010954,1712685069831,-500.0,0.00020821,2]
[322010955,1712685069841,-500.0,0.00020821,2]
[322010956,1712685069851,-500.0,0.00020821,2]
[322010957,1712685069861,-500.0,0.00020821,2]
[322010958,1712685069881,-500.0,0.00020821,2]
[322010959,1712685069891,-751.75,0.00020821,2]
[322010960,1712685069919,-500.0,0.00020821,2]
[322010961,1712685069930,-500.0,0.00020821,2]
[322010962,1712685069943,-500.0,0.00020821,2]
[322010963,1712685069952,-500.0,0.00020821,2]
[322010964,1712685069966,-500.0,0.00020821,2]
[322010965,1712685069977,-824.19,0.00020821,2]
[322010966,1712685070002,-578.6,0.00020821,2]
[322010967,1712685070012,-500.0,0.00020821,2]
[322010968,1712685070022,-500.0,0.00020821,2]
[322010969,1712685070032,-539.12,0.00020821,2]
[322010970,1712685070042,-500.0,0.00020821,2]
[322010971,1712685070053,-1414.32,0.00020821,2]
[322010972,1712685070062,-10655.95,0.00020821,2]
[322010973,1712685070072,-723.8,0.00020821,2]
[322010974,1712685070080,-500.0,0.00020821,2]
[322010975,1712685070089,-500.0,0.00020821,2]
[322010976,1712685070099,-515.10817216,0.00020821,2]
[322010977,1712685070108,-500.0,0.00020821,2]
[322010978,1712685070118,-2205.62,0.00020821,2]
[322010979,1712685070127,-500.0,0.00020821,2]
[322010980,1712685070136,-500.0,0.00020821,2]
[322010981,1712685070145,-500.0,0.00020821,2]
[322010982,1712685070154,-570.86,0.00020821,2]
[322010983,1712685070164,-1150.95,0.00020821,2]
[322010984,1712685070173,-2678.53,0.00020821,2]
[322010985,1712685070186,-500.0,0.00020821,2]
[322010986,1712685070196,-517.67,0.00020821,2]
[322010987,1712685070205,-500.0,0.00020821,2]
[322010988,1712685070215,-784.79,0.00020821,2]
[322010989,1712685070225,-1011.06,0.00020821,2]
[322010990,1712685070235,-500.0,0.00020821,2]
[322010991,1712685070245,-500.0,0.00020821,2]
[322010992,1712685070255,-1027.94,0.00020821,2]
[322010993,1712685070264,-2381.21,0.00020821,2]
[322010994,1712685070274,-602.09,0.00020821,2]
[322010995,1712685070284,-500.0,0.00020821,2]
[322010996,1712685070294,-500.0,0.00020821,2]
[322010997,1712685070304,-500.0,0.00020821,2]
[322010998,1712685070314,-627.1,0.00020821,2]
[322010999,1712685070324,-500.0,0.00020821,2]
[322011000,1712685070334,-1356.51,0.00020821,2]
[322011001,1712685070343,-537.58,0.00020821,2]
[322011002,1712685070354,-545.92979624,0.00020821,2]
[322011003,1712685070364,-2357.41,0.00020821,2]
[322011004,1712685070374,-1094.02,0.00020821,2]
[322011005,1712685070384,-500.0,0.00020821,2]
[322011006,1712685070393,-1329.41,0.00020821,2]
[322011007,1712685070403,-500.0,0.00020821,2]
[322011008,1712685070412,-500.0,0.00020821,2]
[322011009,1712685070422,-500.0,0.00020821,2]
[322011010,1712685070435,-699.13,0.00020821,2]
[322011011,1712685070445,-1056.81,0.00020821,2]
[322011012,1712685070454,-508.82,0.00020821,2]
[322011013,1712685070464,-884.65,0.00020821,2]
[322011014,1712685070474,-759.08,0.00020821,2]
[322011015,1712685070483,-588.43,0.00020821,2]
[322011016,1712685070493,-1364.52,0.00020821,2]
[322011017,1712685070502,-1585.64,0.00020821,2]
[322011018,1712685070511,-7521.25,0.00020821,2]
[322011019,1712685070521,-476.28,0.00020821,2]
[322011020,1712685070531,-16039.16,0.00020821,2]
[322011021,1712685070540,-500.0,0.00020821,2]
[322011022,1712685070550,-1963.21,0.00020821,2]
[322011023,1712685070560,-1303.8,0.00020821,2]
[322011024,1712685070569,-500.0,0.00020821,2]
[322011025,1712685070578,-590.74,0.00020821,2]
[322011026,1712685070588,-1248.85,0.00020821,2]
[322011027,1712685070598,-621.16,0.00020821,2]
[322011028,1712685070608,-817.62,0.00020821,2]
[322011029,1712685070618,-1667.67,0.00020821,2]
[322011030,1712685070627,-529.42,0.00020821,2]
[322011031,1712685070637,-1005.64,0.00020821,2]
[322011032,1712685070646,-1194.08,0.00020821,2]
[322011033,1712685070656,-964.76,0.00020821,2]
[322011034,1712685070666,-516.29,0.00020821,2]
[322011035,1712685070676,-945.1,0.00020821,2]
[322011036,1712685070688,-4307.68,0.00020821,2]
[322011037,1712685070698,-919.69,0.00020821,2]
[322011038,1712685070708,-2377.1,0.00020821,2]
[322011039,1712685070718,-1411.68,0.00020821,2]
[322011040,1712685070728,-1844.01,0.00020821,2]
[322011041,1712685070738,-2659.83,0.00020821,2]
[322011042,1712685070748,-790.69,0.00020821,2]
[322011043,1712685070757,-634.15,0.00020821,2]
[322011044,1712685070767,-567.57,0.00020821,2]
[322011045,1712685070777,-652.12,0.00020821,2]
[322011046,1712685070786,-860.06,0.00020821,2]
[322011047,1712685070796,-500.0,0.00020821,2]
[322011048,1712685070806,-1033.51,0.00020821,2]
[322011049,1712685070816,-1639.1,0.00020821,2]
[322011050,1712685070826,-500.0,0.00020821,2]
[322011051,1712685070837,-500.0,0.00020821,2]
[322011052,1712685070847,-542.36,0.00020821,2]
[322011053,1712685070858,-600.94,0.00020821,2]
[322011054,1712685070868,-1653.76,0.00020821,2]
[322011055,1712685070886,-500.0,0.00020821,2]
[322011056,1712685070896,-859.76,0.00020821,2]
[322011057,1712685070910,-1526.43,0.00020821,2]
[322011058,1712685070929,-2476.75,0.00020821,2]
[322011059,1712685070944,-768.52,0.00020821,2]
[322011060,1712685070953,-526.17,0.00020821,2]
[322011061,1712685070964,-562.79,0.00020821,2]
[322011062,1712685070974,-880.1,0.00020821,2]
[322011063,1712685070984,-4197.48,0.00020821,2]
[322011064,1712685070994,-500.0,0.00020821,2]
[322011065,1712685071004,-2260.95,0.00020821,2]
[322011066,1712685071015,-740.93,0.00020821,2]
[322011067,1712685071025,-1302.06,0.00020821,2]
[322011068,1712685071035,-500.0,0.00020821,2]
[322011069,1712685071045,-1747.82,0.00020821,2]
[322011070,1712685071057,-867.95,0.00020821,2]
[322011071,1712685071067,-500.0,0.00020821,2]
[322011072,1712685071078,-891.79,0.00020821,2]
[322011073,1712685071089,-751.58,0.00020821,2]
[322011074,1712685071100,-500.0,0.00020821,2]
[322011075,1712685071111,-500.0,0.00020821,2]
[322011076,1712685071122,-500.0,0.00020821,2]
[322011077,1712685071133,-1178.22,0.00020821,2]
[322011078,1712685071143,-5939.73,0.00020821,2]
[322011079,1712685071153,-926.84,0.00020821,2]
[322011080,1712685071164,-644.83,0.00020821,2]
[322011081,1712685071175,-500.0,0.00020821,2]
[322011082,1712685071191,-500.0,0.00020821,2]
[322011083,1712685071201,-500.0,0.00020821,2]
[322011084,1712685071212,-4541.37,0.00020821,2]
[322011085,1712685071223,-2446.07,0.00020821,2]
[322011086,1712685071234,-730.21,0.00020821,2]
[322011087,1712685071245,-3555.59,0.00020821,2]
[322011088,1712685071255,-1004.65,0.00020821,2]
[322011089,1712685071266,-668.41,0.00020821,2]
[322011090,1712685071276,-1371.67,0.00020821,2]
[322011091,1712685071286,-500.0,0.00020821,2]
[322011092,1712685071296,-500.0,0.00020821,2]
[322011093,1712685071306,-500.0,0.00020821,2]
[322011094,1712685071316,-800.77,0.00020821,2]
[322011095,1712685071325,-500.0,0.00020821,2]
[322011096,1712685071335,-2156.03,0.00020821,2]
[322011097,1712685071344,-500.0,0.00020821,2]
[322011098,1712685071353,-1178.1,0.00020821,2]
[322011099,1712685071363,-643.3,0.00020821,2]
[322011100,1712685071372,-513.42,0.00020821,2]
[322011101,1712685071382,-1251.88,0.00020821,2]
[322011102,1712685071392,-547.02,0.00020821,2]
[322011103,1712685071402,-9335.45,0.00020821,2]
[322011104,1712685071412,-804.55,0.00020821,2]
[322011105,1712685071421,-5598.87,0.00020821,2]
[322011106,1712685071434,-500.0,0.00020821,2]
[322011107,1712685071443,-1059.63,0.00020821,2]
[322011108,1712685071452,-672.74,0.00020821,2]
[322011109,1712685071461,-500.0,0.00020821,2]
[322011110,1712685071470,-500.0,0.00020821,2]
[322011111,1712685071480,-794.34,0.00020821,2]
[322011112,1712685071489,-1184.09,0.00020821,2]
[322011113,1712685071499,-500.0,0.00020821,2]
[322011114,1712685071509,-731.57,0.00020821,2]
[322011115,1712685071518,-878.03,0.00020821,2]
[322011116,1712685071528,-837.95,0.00020821,2]
[322011117,1712685071538,-1088.76,0.00020821,2]
[322011118,1712685071547,-1646.97,0.00020821,2]
[322011119,1712685071557,-618.92,0.00020821,2]
[322011120,1712685071566,-703.24,0.00020821,2]
[322011121,1712685071575,-1497.53,0.00020821,2]
[322011122,1712685071584,-500.0,0.00020821,2]
[322011123,1712685071593,-764.82,0.00020821,2]
[322011124,1712685071603,-1481.94,0.00020821,2]
[322011125,1712685071613,-1030.94,0.00020821,2]
[322011126,1712685071623,-500.0,0.00020821,2]
[322011127,1712685071633,-1348.64,0.00020821,2]
[322011128,1712685071642,-500.0,0.00020821,2]
[322011129,1712685071949,-388.46,0.00020821,2]
[322011130,1712685071959,-718.64,0.00020821,2]
[322011131,1712685071969,-500.0,0.00020821,2]
[322011132,1712685071978,-500.0,0.00020821,2]
[322011133,1712685071989,-684.88,0.00020821,2]
[322011134,1712685071999,-505.34209034,0.00020821,2]
[322011135,1712685072009,-1423.87,0.00020821,2]
[322011136,1712685072019,-886.66,0.00020821,2]
[322011137,1712685072029,-500.0,0.00020821,2]
[322011138,1712685072039,-500.0,0.00020821,2]
[322011139,1712685072049,-500.0,0.00020821,2]
[322011140,1712685072058,-500.0,0.00020821,2]
[322011141,1712685072068,-1369.54,0.00020821,2]
[322011142,1712685072078,-500.0,0.00020821,2]
[322011143,1712685072087,-1513.26,0.00020821,2]
[322011144,1712685072097,-407.44,0.00020821,2]
[322011145,1712685072107,-1078.79,0.00020821,2]
[322011146,1712685072117,-1135.58,0.00020821,2]
[322011147,1712685072127,-3637.63,0.00020821,2]
[322011148,1712685072137,-975.77,0.00020821,2]
[322011149,1712685072147,-500.0,0.00020821,2]
[322011150,1712685072156,-719.06,0.00020821,2]
[322011151,1712685072166,-613.65,0.00020821,2]
[322011152,1712685072176,-500.0,0.00020821,2]
[322011153,1712685072187,-500.0,0.00020821,2]
[322011154,1712685072198,-500.0,0.00020821,2]
[322011155,1712685072207,-4161.63,0.00020821,2]
[322011156,1712685072216,-500.0,0.00020821,2]
[322011157,1712685072227,-508.36,0.00020821,2]
[322011158,1712685072237,-1872.54,0.00020821,2]
[322011159,1712685072247,-2607.78,0.00020821,2]
[322011160,1712685072258,-500.0,0.00020821,2]
[322011161,1712685072268,-743.78,0.00020821,2]
[322011162,1712685072278,-500.0,0.00020821,2]
[322011163,1712685072288,-1000.0,0.00020831,2]
[322011164,1712685072298,-500.0,0.00020831,2]
[322011165,1712685072307,-500.0,0.00020831,2]
[322011166,1712685072317,-3010.98672023,0.000209,2]
[322011167,1712685072327,-5572.90028845,0.000209,2]
[322011168,1712685072338,-15095.7671179,0.000209,2]
[322011169,1712685072347,-1605.76747325,0.000209,2]
[322011170,1712685072357,-3760.94825741,0.000209,2]
[322011171,1712685072367,-311.56462363,0.000209,2]
[322011172,1712685072376,-180.00657047,0.000209,2]
[322011173,1712685072386,-563.76564406,0.000209,2]
[322011174,1712685072395,-762.12315886,0.000209,2]
[322011175,1712685072405,-762.12315869,0.000209,2]
[322011176,1712685072414,-1449.71488732,0.000209,2]
[322011177,1712685072424,-762.12315869,0.000209,2]
[322011178,1712685072435,-156.90567095,0.0002091,2]
[322011179,1712685072445,-10042.5083804,0.00020986,2]
[322011180,1712685072454,-11115.412,0.00020986,2]
[322011181,1712685072463,-527.9237057,0.00020986,2]
[322011182,1712685072474,-589.5652628,0.00020986,2]
[322011183,1712685072484,-1413.3529137,0.00020986,2]
[322011184,1712685072494,-1578.3791729,0.00020986,2]
[322011185,1712685072505,-39436.6467704,0.00020986,2]
[322011186,1712685072514,-49489.3391459,0.00020986,2]
[322011187,1712685072525,-412900.21486621,0.00021,2]
[322011188,1712685072948,-10510.64443999,0.00021,2]
[322011189,1712685072961,-495.19214733,0.00021,2]
[322011190,1712685072973,-301.65310018,0.00021,2]
[322011191,1712685072984,-9008.70305332,0.00021,2]
[322011192,1712685072997,-1006.06860091,0.00021,2]
[322011193,1712685073012,-3751.56582909,0.00021,2]
[322011194,1712685073023,-866.7785217,0.00021,2]
[322011195,1712685073035,-981.97731131,0.00021,2]
[322011196,1712685073754,-281.3806097,0.00019178,2]
[322011197,1712685073788,-218.6193903,0.00019178,2]
[322011198,1712685073806,-641.53,0.00019178,2]
[322011199,1712685073815,-500.0,0.00019178,2]
[322011200,1712685073828,-500.0,0.00019178,2]
[322011201,1712685073843,-500.0,0.00019178,2]
[322011202,1712685073856,-500.0,0.00019452,2]
[322011203,1712685073865,-641.53,0.00019452,2]
[322011204,1712685073875,-500.0,0.00019452,2]
[322011205,1712685073885,-500.0,0.00019452,2]
[322011206,1712685073895,-226.92548868,0.00019726,2]
[322011207,1712685073929,-273.07451132,0.00019726,2]
[322011208,1712685073942,-535.26884447,0.00019726,2]
[322011209,1712685073955,-106.26115553,0.00019726,2]
[322011210,1712685073965,-500.0,0.00019726,2]
[322011211,1712685073974,-96.08698232,0.00019726,2]
[322011212,1712685074008,-78.84301768,0.00019726,2]
[322011213,1712685074018,-213.68792353,0.0002,2]
[322011214,1712685074030,-250.5,0.0002,2]
[322011215,1712685074072,-35.81207647,0.0002,2]
[322011216,1712685074082,-641.53,0.0002,2]
[322011217,1712685074093,-500.0,0.0002,2]
[322011218,1712685074102,-762.12315869,0.000209,2]
[322011219,1712685074111,-13607.16369725,0.00021,2]
[322011220,1712685074125,-8750.00000005,0.00021,2]
[322011221,1712685074153,-410.06207373,0.00020273,2]
[322011222,1712685074165,-25.30892556,0.00020273,2]
[322011223,1712685074175,-4165.83616257,0.00021,2]
[322011224,1712685074266,-290.77689149,0.00019178,2]
[322011225,1712685074278,-209.22310851,0.00019178,2]
[322011226,1712685074288,-1753.72301509,0.00021,2]
[322011227,1712685075033,-487.65304702,0.000189,2]
[322011228,1712685075043,-500.0,0.00019178,2]
[322011229,1712685075053,-500.0,0.00019452,2]
[322011230,1712685075062,-521.94,0.00019452,2]
[322011231,1712685075072,-500.0,0.00019726,2]
[322011232,1712685075082,-500.0,0.0002,2]
[322011233,1712685075091,-500.0,0.00020273,2]
[322011234,1712685075101,-641.53,0.00020273,2]
[322011235,1712685075111,-546.72,0.00020273,2]
[322011236,1712685075122,-500.0,0.00020547,2]
[322011237,1712685075132,-641.53,0.00020547,2]
[322011238,1712685075142,-500.0,0.00020821,2]
[322011239,1712685075152,-641.53,0.00020821,2]
[322011240,1712685075162,-11219.67917549,0.00021,2]
[322011241,1712685075232,-3502.34701971,0.00021,2]
[322011242,1712685075268,-3210.30792812,0.00021,2]
[322011243,1712685075279,-14301.24755611,0.00021,2]
[322011244,1712685075291,-48049.20730327,0.00021,2]
[322011245,1712685075308,-26717.13631183,0.00021,2]
[322011246,1712685075320,-40861.68027158,0.00021,2]
[322011247,1712685075332,-35193.30621903,0.00021,2]
[322011248,1712685075341,-6283.4308074,0.00021,2]
[322011249,1712685075352,-32613.57523247,0.00021,2]
[322011250,1712685075364,-41612.44138868,0.00021,2]
[322011251,1712685075375,-39869.07887066,0.00021,2]
[322011252,1712685075386,-81999.7035884,0.00021,2]
[322011253,1712685075398,-45619.60973836,0.00021,2]
[322011254,1712685075410,-39521.68946829,0.00021,2]
[322011255,1712685075422,-30648.15056093,0.00021,2]
[322011256,1712685075431,-5852.94164862,0.00021,2]
[322011257,1712685075445,-40648.86173017,0.00021,2]
[322011258,1712685075456,-43642.19286167,0.00021,2]
[322011259,1712685075468,-18678.76180433,0.00021,2]
[322011260,1712685075480,-30360.5728414,0.00021,2]
[322011261,1712685075491,-17964.14243788,0.00021,2]
[322011262,1712685075503,-47472.48210946,0.00021,2]
[322011263,1712685075514,-6209.71687002,0.00021,2]
[322011264,1712685075526,-86771.96459768,0.00021,2]
[322011265,1712685075537,-25327.44810259,0.00021,2]
[322011266,1712685075556,-6111.1128565,0.00021,2]
[322011267,1712685075568,-826.93703925,0.00021,2]
[322011268,1712685075588,-14005.0777026,0.00021,2]
[322011269,1712685075603,-8940.82666261,0.00021,2]
[322011270,1712685075615,-6507.90241172,0.00021,2]
[322011271,1712685075626,-7488.6370914,0.00021,2]
[322011272,1712685075636,-3042.32135716,0.00021,2]
[322011273,1712685075647,-5987.24573621,0.00021,2]
[322011274,1712685075658,-18182.54998074,0.00021,2]
[322011275,1712685075670,-13052.77636373,0.00021,2]
[322011276,1712685075681,-3027.59323456,0.00021,2]
[322011277,1712685075697,-23921.35929829,0.00021,2]
[322011278,1712685075709,-9042.77000654,0.00021,2]
[322011279,1712685075720,-3826.68141156,0.00021,2]
[322011280,1712685075731,-21382.78572539,0.00021,2]
[322011281,1712685075743,-7267.32106609,0.00021,2]
[322011282,1712685075754,-12271.22580282,0.00021,2]
[322011283,1712685075766,-6708.00720861,0.00021,2]
[322011284,1712685075778,-15370.66424869,0.00021,2]
[322011285,1712685075790,-12170.17688413,0.00021,2]
[322011286,1712685075802,-348.66417396,0.00021,2]
[322011287,1712685076308,-312.68796974,0.00019178,2]
[322011288,1712685076328,-187.31203026,0.00019178,2]
[322011289,1712685076337,-301.7148397,0.00019178,2]
[322011290,1712685122866,765.4,0.00017051,2]
[322011291,1712685144097,6855.2803,0.00017913,2]
[322011292,1712685150311,591.59806849,0.00015,2]
[322011293,1712685157517,3159.30444615,0.00017547,2]
[322011294,1712685168716,343.61711583,0.00017913,2]
[322011295,1712685176554,1893.58022976,0.00017547,2]
[322011296,1712685234733,6160.93142518,0.00032447,120]
[322011297,1712685237768,3082.34,0.00012,2]
[322011298,1712685270730,653.20048914,0.00018,2]
[322011299,1712685273802,746.19048323,0.00032447,120]
[322011300,1712685285333,507.52,0.00017734,2]
[322011301,1712685306797,158.27,0.00017867,2]
[322011302,1712685307060,158.27,0.00017945,2]
[322011303,1712685345285,4347.37,0.00017455,2]
[322011304,1712685369334,200.0,0.00019178,10]
[322011305,1712685400432,195.18,0.00017494,2]
[322011306,1712685400796,195.18,0.0002624,120]
[322011307,1712685404777,155.1,0.00017494,2]
[322011308,1712685417855,164.77879134,0.0001792,2]
[322011309,1712685470565,7207.76,0.00017558,2]
[322011310,1712685508022,2338.46,0.00017576,2]
[322011311,1712685524696,1048.65,0.00017413,2]
[322011312,1712685550161,167.21,0.00017921,2]
[322011313,1712685556473,893.37,0.00017399,2]
[322011314,1712685562066,200.0,0.00017413,2]
[322011315,1712685628996,812.18,0.00015442,2]
[322011316,1712685629222,812.18,0.00017706,2]
[322011317,1712685636297,385.26,0.00017355,2]
[322011318,1712685638318,150.0,0.00021999,10]
[322011319,1712685653711,1182.9,0.00017366,2]
[322011320,1712685675902,1000.0,0.00018001,2]
[322011321,1712685687076,643.79,0.0001736,2]
[322011322,1712685688416,155.0,0.00018001,2]
[322011323,1712685695933,23302.16971392,0.00018001,2]
[322011324,1712685705579,1677.62251739,0.00018001,2]
[322011325,1712685706383,250.0,0.00017384,2]
[322011326,1712685707790,1000.0,0.00018001,2]
[322011327,1712685710087,1780.29964509,0.00018001,2]
[322011328,1712685710553,4397.7931692,0.00018001,2]
[322011329,1712685771986,593.98,0.00017419,2]
[322011330,1712685811574,158.27,0.000176,2]
[322011331,1712685811832,158.27,0.00017692,2]
[322011332,1712685812259,158.27,0.00017784,2]
[322011333,1712685812466,158.27,0.00017876,2]
[322011334,1712685812887,158.27,0.00017967,2]
[322011335,1712685881337,4313.37203052,0.00018001,2]
[322011336,1712685896460,5000.0,0.000225,10]
[322011337,1712686013204,352.7727058,0.00018001,2]
[322011338,1712686030804,157.56,0.00017418,2]
[322011339,1712686050288,595.24,0.00017425,2]
[322011340,1712686071004,161.34337311,0.00021999,10]
[322011341,1712686122623,200.0,0.00017425,2]
[322011342,1712686135886,3563.15,0.00017605,2]
[322011343,1712686140771,2000.0,0.000282,120]
[322011344,1712686157539,500.0,0.00018001,2]
[322011345,1712686173015,768.29,0.00015508,2]
[322011346,1712686173239,768.29,0.00017772,2]
[322011347,1712686178814,150.0,0.00017426,2]
[322011348,1712686214215,500.0,0.00017416,2]
[322011362,1712686232336,-1122.97248852,0.00018002,2]
[322011363,1712686232347,-158.27,0.00018059,2]
[322011364,1712686232363,-158.27,0.00018151,2]
[322011365,1712686232372,-1000.0,0.00018209,2]
[322011366,1712686232382,-11817.50743025,0.0001821,2]
[322011367,1712686232391,-1633.28861545,0.0001821,2]
[322011368,1712686232400,-1705.3199,0.0001821,2]
[322011369,1712686232408,-1738.46902379,0.0001821,2]
[322011371,1712686232417,-4934.3076,0.00018211,2]
[322011373,1712686232426,-158.27,0.00018243,2]
[322011375,1712686232435,-2180.90381059,0.00018269,2]
[322011377,1712686232444,-1000.0,0.00018269,2]
[322011378,1712686232453,-6498.05,0.00018269,2]
[322011380,1712686232462,-150.99,0.00018269,2]
[322011382,1712686232471,-199.1948333,0.0001827,2]
[322011387,1712686232520,-1.5261009,0.0001827,2]
[322011388,1712686232529,-25010.9458,0.0001827,2]
[322011389,1712686232539,-1204.7789,0.0001827,2]
[322011390,1712686232548,-499.99,0.0001827,2]
[322011391,1712686232557,-499.99,0.0001827,2]
[322011392,1712686232566,-3914.4,0.0001827,2]
[322011393,1712686232576,-130057.00596754,0.0001831,2]
[322011394,1712686232585,-925.074,0.0001831,2]
[322011395,1712686232594,-5641.77771186,0.00018311,2]
[322011396,1712686232633,-24969.27298814,0.00018311,2]
[322011397,1712686232642,-5651.693,0.00018311,2]
[322011398,1712686232652,-158.27,0.00018334,2]
[322011399,1712686232693,-3726.623,0.00018355,2]
[322011400,1712686232712,-108510.21160638,0.0001837,2]
[322011401,1712686232723,-3621.074,0.0001837,2]
[322011402,1712686232732,-811.52,0.00018371,2]
[322011403,1712686232742,-315.19318992,0.00018372,2]
[322011404,1712686232753,-7500.0,0.00018372,2]
[322011405,1712686232763,-9024.4664536,0.00018411,2]
[322011406,1712686232773,-20089.52125853,0.00018411,2]
[322011407,1712686232783,-158.27,0.00018426,2]
[322011408,1712686232793,-196.27760885,0.00018462,2]
[322011409,1712686232803,-217.08737728,0.0001847,2]
[322011410,1712686232813,-560.6155768,0.0001847,2]
[322011411,1712686232823,-237.15334608,0.0001847,2]
[322011412,1712686232834,-282.63594193,0.0001847,2]
[322011413,1712686232844,-307.71855906,0.0001847,2]
[322011414,1712686232856,-266.7377988,0.0001847,2]
[322011415,1712686232866,-190.59064653,0.0001847,2]
[322011416,1712686232876,-277.0218118,0.0001847,2]
[322011417,1712686232888,-155.0,0.0001847,2]
[322011418,1712686232898,-395.64639746,0.0001847,2]
[322011419,1712686232908,-155.14864062,0.0001847,2]
[322011420,1712686232918,-155.42857161,0.0001847,2]
[322011421,1712686232929,-301.80323021,0.0001847,2]
[322011422,1712686232952,-261.60041953,0.0001847,2]
[322011423,1712686232962,-271.14072987,0.0001847,2]
[322011424,1712686232972,-1578.24034529,0.0001847,2]
[322011425,1712686232982,-1780.29964509,0.0001847,2]
[322011426,1712686232992,-3911.12942245,0.0001847,2]
[322011427,1712686233002,-186.23018946,0.0001847,2]
[322011428,1712686233012,-1130.31432446,0.0001847,2]
[322011429,1712686233022,-500.0,0.0001847,2]
[322011430,1712686233033,-1477.67255991,0.00018471,2]
[322011431,1712686233043,-448.41932474,0.00018471,2]
[322011432,1712686233052,-201.21618192,0.00018471,2]
[322011433,1712686233063,-973.79223439,0.00018471,2]
[322011434,1712686233073,-245000.0,0.00018472,2]
[322011435,1712686233083,-1000.0,0.00018472,2]
[322011436,1712686233094,-11480.18631349,0.00018472,2]
[322011437,1712686233118,-522.13920169,0.00018472,2]
[322011447,1712686238131,-500.0,0.00018369,2]
[322011448,1712686238141,-500.0,0.00018369,2]
[322011449,1712686238151,-500.0,0.00018369,2]
[322011451,1712686238160,-78.33232763,0.00018369,2]
[322011466,1712686238307,-421.66767237,0.00018369,2]
[322011469,1712686238318,-500.0,0.00018369,2]
[322011470,1712686238328,-500.0,0.00018369,2]
[322011472,1712686238337,-500.0,0.00018369,2]
[322011474,1712686238346,-500.0,0.00018369,2]
[322011476,1712686238357,-500.0,0.00018369,2]
[322011478,1712686238366,-500.0,0.00018369,2]
[322011480,1712686238377,-500.0,0.00018369,2]
[322011481,1712686238386,-500.0,0.00018369,2]
[322011482,1712686238396,-32505.65463736,0.00018472,2]
[322011483,1712686238408,-41787.83704819,0.00018472,2]
[322011484,1712686238420,-13704.18279927,0.00018472,2]
[322011485,1712686238430,-500.0,0.00018474,2]
[322011486,1712686238440,-11817.50743022,0.00018509,2]
[322011487,1712686238450,-1633.2886154,0.00018509,2]
[322011488,1712686238460,-158.27,0.00018518,2]
[322011489,1712686238470,-200.72093415,0.00018646,2]
[322011490,1712686238480,-315.1931899,0.00018688,2]
[322011491,1712686238490,-11817.50743022,0.00018808,2]
[322011492,1712686238500,-1633.2886154,0.00018808,2]
[322011493,1712686238509,-3635.639,0.00018875,2]
[322011494,1712686238519,-212.0,0.00018875,2]
[322011495,1712686238528,-161.02408066,0.000189,2]
[322011496,1712686238538,-9607.36190136,0.000189,2]
[322011497,1712686238550,-114.83928734,0.000189,2]
[322011498,1712686238560,-184.28691248,0.000189,2]